Cogmind - Beta 14 @@@ ROGUE MODE // 2024.10.20 @ 09:51:07 Player: toydarian Result: Destroyed by L-31 Rogue with Katana Performance ------------- Evolutions (0) 0 Regions Visited (4) 800 Robots Destroyed (30) 150 Value Destroyed (582) 582 Prototype IDs (2) 40 Alien Tech Used (0) 0 Bonus (300) 300 TOTAL SCORE: 1872 Bonus ------- Aligned with FarCom 300 Cogmind --------- Core Integrity 0/250 Matter 224/300 Energy 114/125 System Corruption 0% Temperature Cool (0) Movement Treading (240) Ox1 Location -9/Mines Parts ------- > --- POWER (1) -------- Light Ion Engine > --- PROPULSION (2) --- Light Treads Light Treads > --- UTILITY (2) ------ High-capacity Storage Unit Core Shielding > --- WEAPON (2) ------- Assault Rifle Flail > --- INVENTORY (20) --- Light Ion Engine Superbattery (1500) Sensor Array Transport Network Coupler Launcher Guidance Computer Core Shielding Power Shielding Hacking Suite Hacking Suite EM Pulse Gun Medium Laser Light Assault Rifle Light Assault Rifle Peak State ------------ > --- POWER ------------ Ion Engine > --- PROPULSION ------- Light Treads Light Treads > --- UTILITY ---------- High-capacity Storage Unit Superbattery > --- WEAPON ----------- Assault Rifle Light Assault Rifle > --- INVENTORY -------- Light Ion Engine Light Ion Engine Sensor Array Transport Network Coupler Launcher Guidance Computer Core Shielding Core Shielding Power Shielding Hacking Suite Hacking Suite EM Pulse Gun Medium Laser Light Assault Rifle Flail [Rating: 18] Favorites ----------- Power Ion Engine Engine Ion Engine Propulsion Light Treads Treads Light Treads Utility High-capacity Storage Unit Device Sensor Array Storage High-capacity Storage Unit Protection Power Shielding Weapon Assault Rifle Ballistic Gun Assault Rifle Launcher Grenade Launcher Impact Weapon Flail Slashing Weapon Longsword +1 Build | -11 -10 -10 -10 -9 ------- Run | Yrd Mat Min Exi Min Slots Evolved . | . . . . . Power . | . . . . . Propulsion . | . . . . . Utility . | . . . . . Weapon . | . . . . . Parts Attached 29 | 6 12 4 5 2 Power 3 | 1 1 . . 1 Engine 3 | 1 1 . . 1 Core . | . . . . . Reactor . | . . . . . Propulsion 5 | 2 1 2 . . Treads 5 | 2 1 2 . . Leg . | . . . . . Wheel . | . . . . . Hover . | . . . . . Flight . | . . . . . Utility 9 | 1 5 . 3 . Device 1 | . 1 . . . Storage 4 | 1 2 . 1 . Processor . | . . . . . Hackware . | . . . . . Protection 4 | . 2 . 2 . Artifact . | . . . . . Weapon 12 | 2 5 2 2 1 Energy Gun . | . . . . . Energy Cannon . | . . . . . Ballistic Gun 7 | 2 2 2 1 . Ballistic Cannon . | . . . . . Launcher 3 | . 3 . . . Special Weapon . | . . . . . Impact Weapon 1 | . . . . 1 Slashing Weapon 1 | . . . 1 . Piercing Weapon . | . . . . . Special Melee Weapon . | . . . . . Unidentified Prototypes 2 | . . . 2 . Parts Lost 8 | . 3 4 . 1 Power 2 | . 1 . . 1 Propulsion 3 | . 1 2 . . Utility . | . . . . . Weapon 3 | . 1 2 . . Highest Loss Streak 3 | . 3 2 . 1 To Critical Strikes . | . . . . . Average Slot Usage (%) 97 | . 95 97 99 99 Engine 13 | . 14 14 14 13 Treads 27 | . 28 25 28 28 Device 1 | . 5 . . . Storage 14 | . 14 14 14 14 Protection 10 | . 4 14 13 14 Ballistic Gun 22 | . 16 23 28 28 Launcher 5 | . 11 4 . . Peak Build Rating 18 | 6 9 9 18 10 Average Rating 8 | 4 7 8 9 9 On Entrance 6 | . 6 8 9 10 Naked Turns . | . . . . . Heaviest Build 51 | 11 51 51 49 49 Greatest Support 40 | 40 40 40 40 40 Greatest Overweight (x) 2 | . 1 2 1 1 Average Overweight (x) . | . . 1 1 1 Largest Inventory Capacity 20 | 8 20 20 20 20 Average Capacity 19 | 7 18 20 20 20 Most Carried 20 | 5 20 16 19 14 Average Carried 12 | 2 12 13 13 13 Final Capacity 20 | 8 20 20 20 20 Final Carried 14 | 2 14 13 14 13 Class Distribution -------------------- 100% | Mutant Dominant Class ---------------- Mutant | -10/Materials Mutant | -10/Mines Mutant | -10/Exiles Mutant | -9/Mines Resources | -11 -10 -10 -10 -9 ----------- Run | Yrd Mat Min Exi Min Matter Collected 809 | 201 337 271 . . Remotely . | . . . . . Salvage Created 500 | . 446 54 . . Parts 52 | . 43 9 . . Haulers Intercepted 2 | . 2 . . . Recyclers Shooed . | . . . . . Parts Field Recycled . | . . . . . Retrieved Matter . | . . . . . Parts Self-Destructed . | . . . . . Prevented . | . . . . . Kills | -11 -10 -10 -10 -9 ------- Run | Yrd Mat Min Exi Min Combat Hostiles Destroyed 15 | . 12 3 . . Guns 5 | . 2 3 . . AOE 10 | . 10 . . . Classes Destroyed 9 | . 8 1 . . Worker 2 | . 1 1 . . Builder 5 | . 3 2 . . Hauler 2 | . 2 . . . Recycler 1 | . 1 . . . Operator 3 | . 3 . . . Watcher 2 | . 2 . . . Swarmer 4 | . 3 1 . . Grunt 9 | . 9 . . . Demolisher 2 | . . 2 . . Best Kill Streak 6 | . 6 3 . . Combat Bots Only 5 | . 5 1 . . Max Kills in Single Turn 2 | . 2 1 . . Gunslinging . | . . . . . Exploded 1 | . 1 . . . Melee . | . . . . . Uniques/NPCs Destroyed . | . . . . . Combat | -11 -10 -10 -10 -9 -------- Run | Yrd Mat Min Exi Min Hostile Shots Fired 79 | . 51 19 . 9 Missed 22 | . 16 4 . 2 Damage Taken 1135 | . 464 501 . 170 Core 256 | . 39 124 . 93 Absorbed by Shields . | . . . . . Redirected to Shielding 44 | . 6 17 . 21 Core Remaining (%) 100 | 100 . . . . Volleys Fired 64 | . 46 15 . 3 Largest 2 | . 2 2 . 2 Hottest 60 | . 60 50 . 40 Shots Fired 98 | . 67 26 . 5 Gun 75 | . 47 23 . 5 Cannon . | . . . . . Launcher 23 | . 20 3 . . Special . | . . . . . Kinetic 75 | . 47 23 . 5 Thermal . | . . . . . Explosive 23 | . 20 3 . . Electromagnetic . | . . . . . Robot Hit Streak 7 | . 7 4 . 4 Robot Miss Streak 4 | . 4 3 . 1 Penetration Max . | . . . . . Secondary Targets . | . . . . . Shots Hit Robots 52 | . 34 14 . 4 Core Hits 52 | . 43 9 . . Critical Kills . | . . . . . Critical Parts Destroyed . | . . . . . Critical Strikes . | . . . . . Melee Attacks . | . . . . . Impact . | . . . . . Slashing . | . . . . . Piercing . | . . . . . Sneak Attacks . | . . . . . Combat Hostiles . | . . . . . Follow-up Attacks . | . . . . . Damage Inflicted 1942 | . 1585 308 . 49 Guns 516 | . 315 152 . 49 Cannons . | . . . . . Explosions 1426 | . 1270 156 . . Melee . | . . . . . Ramming . | . . . . . Kinetic 516 | . 315 152 . 49 Thermal . | . . . . . Explosive 1426 | . 1270 156 . . Electromagnetic . | . . . . . Impact . | . . . . . Slashing . | . . . . . Piercing . | . . . . . Highest Corruption . | . . . . . Average Corruption . | . . . . . Corruption Purged . | . . . . . Corruption Blocked . | . . . . . Overload Shots . | . . . . . Overflow Damage 45 | . 45 . . . Projectiles . | . . . . . Explosions 45 | . 45 . . . Melee . | . . . . . Knockbacks . | . . . . . Impact . | . . . . . Kinetic . | . . . . . Secondary . | . . . . . Self-Inflicted Damage 40 | . 40 . . . Shots 3 | . 3 . . . Rammed . | . . . . . Targets Rammed . | . . . . . Kicked . | . . . . . Crushed . | . . . . . Highest Temperature 50 | . 50 . . . Average Temperature 27 | . 27 . . . Received Heat Transfer 222 | . 204 . . 18 Siege Activations . | . . . . . Robots Corrupted . | . . . . . Combat Hostiles . | . . . . . Parts Fried . | . . . . . Impact Corruptions . | . . . . . Robots Melted . | . . . . . Combat Hostiles . | . . . . . Parts Melted . | . . . . . Heat Transferred . | . . . . . Parts Sabotaged . | . . . . . Parts Stolen . | . . . . . Parts Stripped . | . . . . . Power Chain Reactions . | . . . . . Alert | -11 -10 -10 -10 -9 ------- Run | Yrd Mat Min Exi Min Peak Influence 266 | . 266 70 . 15 Initial 33 | . . 33 . . Average 49 | . 78 18 . . Maximum Alert Level 1 | . 1 . . . Low Security (%) 99 | 100 99 100 . 100 Level 1 . | . . . . . Level 2 . | . . . . . Level 3 . | . . . . . Level 4 . | . . . . . Level 5 . | . . . . . High Security . | . . . . . Max Security . | . . . . . Squads Dispatched 4 | . 4 . . . Investigation 2 | . 2 . . . Extermination . | . . . . . Reinforcement 2 | . 2 . . . Assault . | . . . . . Garrison . | . . . . . Intercept . | . . . . . Searches Triggered . | . . . . . Construction Impeded . | . . . . . Haulers Reinforced . | . . . . . Active Scanning Responses . | . . . . . Cargo Convoy Interrupts . | . . . . . Stealth | -11 -10 -10 -10 -9 --------- Run | Yrd Mat Min Exi Min Distress Signals 2 | . 1 1 . . Communications Jammed . | . . . . . Distress Signals . | . . . . . Times Spotted 35 | . 24 5 . 6 Peak Tracking Total 7 | . 7 3 . 6 Tactical Retreats 3 | . 1 1 . 1 Traps | -11 -10 -10 -10 -9 ------- Run | Yrd Mat Min Exi Min Traps Triggered . | . . . . . Indirectly . | . . . . . Trap Hack Attempts . | . . . . . Triggered . | . . . . . Disarmed 6 | . 6 . . . Reprogrammed . | . . . . . Reused . | . . . . . Traps Extracted . | . . . . . Installed . | . . . . . Triggered . | . . . . . Machines | -11 -10 -10 -10 -9 ---------- Run | Yrd Mat Min Exi Min Machines Disabled . | . . . . . Max in Single Turn . | . . . . . Machines Repaired . | . . . . . Machines Dismantled . | . . . . . Machines Sabotaged . | . . . . . Overloaded Fab Kills . | . . . . . Hacking | -11 -10 -10 -10 -9 --------- Run | Yrd Mat Min Exi Min Machines Accessed 11 | . 7 . 4 . Terminals 6 | . 6 . . . Fabricators . | . . . . . Repair Stations . | . . . . . Recycling Units 1 | . 1 . . . Scanalyzers . | . . . . . Garrison Access . | . . . . . Total Hacks 80 | . 31 . 49 . Successful 68 | . 19 . 49 . Failed 12 | . 12 . . . Catastrophic 1 | . 1 . . . Database Lockouts . | . . . . . Manual 10 | . 9 . 1 . Terminals 18 | . 18 . . . Fabricators . | . . . . . Repair Stations . | . . . . . Recycling Units 13 | . 13 . . . Scanalyzers . | . . . . . Garrison Access . | . . . . . Terminal Hacks 58 | . 9 . 49 . Record 52 | . 3 . 49 . Locate Traps 5 | . 5 . . . Disarm Traps 1 | . 1 . . . Fabricator Hacks . | . . . . . Repair Station Hacks . | . . . . . Recycling Unit Hacks 10 | . 10 . . . Recycle Component 6 | . 6 . . . Process 2 | . 2 . . . Report Inventory 1 | . 1 . . . Retrieve Matter 1 | . 1 . . . Scanalyzer . | . . . . . Garrison Access Hacks . | . . . . . Unauthorized Hacks . | . . . . . Terminals . | . . . . . Fabricators . | . . . . . Repair Stations . | . . . . . Recycling Units . | . . . . . Scanalyzers . | . . . . . Garrison Access . | . . . . . Data Cores Recovered . | . . . . . Used . | . . . . . Hacking Detections 5 | . 5 . . . Full Trace Events 2 | . 2 . . . Feedback Events . | . . . . . Feedback Blocked . | . . . . . Robot Schematics Acquired . | . . . . . Robots Built . | . . . . . Authchips . | . . . . . Time . | . . . . . Total Robot Build Rating . | . . . . . Part Schematics Acquired . | . . . . . Parts Built . | . . . . . Authchips . | . . . . . Time . | . . . . . Total Part Build Rating . | . . . . . Parts Repaired . | . . . . . Time . | . . . . . Parts Recycled 6 | . 6 . . . Recycled Matter 244 | . 244 . . . Retrieved Matter 8 | . 8 . . . Retrieved Components . | . . . . . Parts Scanalyzed . | . . . . . Part Schematics Acquired . | . . . . . Parts Damaged . | . . . . . Bothacking | -11 -10 -10 -10 -9 ------------ Run | Yrd Mat Min Exi Min Used RIF Installer . | . . . . . Robots Hacked . | . . . . . Non-combat . | . . . . . Combat . | . . . . . Robot Hacks Applied . | . . . . . Relay Couplers Released . | . . . . . Fabnet Peak Effective % . | . . . . . Robots Rewired . | . . . . . Allies Hacked . | . . . . . Hacks Repelled . | . . . . . Allies | -11 -10 -10 -10 -9 -------- Run | Yrd Mat Min Exi Min Total Allies . | . . . . . Largest Group . | . . . . . Highest-Rated Group . | . . . . . Highest-Rated Ally . | . . . . . Total Orders . | . . . . . Ally Attacks . | . . . . . Total Damage . | . . . . . Kills . | . . . . . Allies Corrupted . | . . . . . Allies Melted . | . . . . . Intel | -11 -10 -10 -10 -9 ------- Run | Yrd Mat Min Exi Min Robot Analysis Total . | . . . . . Derelict Logs Recovered . | . . . . . Drone Launches . | . . . . . Drone Recoveries . | . . . . . Exploration | -11 -10 -10 -10 -9 ------------- Run | Yrd Mat Min Exi Min Turns Passed 4915 | 60 1869 1226 1449 311 Spaces Moved 2058 | 40 823 471 598 126 Core 15 | 15 . . . . Treads 2043 | 25 823 471 598 126 Legs . | . . . . . Wheels . | . . . . . Hover . | . . . . . Flight . | . . . . . Fastest Speed 50 | 50 160 240 240 240 Average Speed 226 | 118 207 250 240 240 Slowest Speed 320 | 160 240 320 240 240 Overloaded Moves . | . . . . . Propulsion Burnouts . | . . . . . Robots Hopped . | . . . . . Cave-ins Triggered . | . . . . . Exploration Rate (%) 59 | 4 98 76 92 29 Regions Visited 4 Branch Regions 3 Pre-discovered Areas 2 | . . 1 1 . Known Exits Taken . | . . . . . Unknown Exits Taken 4 | 1 1 1 1 . Scrap Searched 1 | . . 1 . . Spaces Dug 11 | . 11 . . . Terrain Destroyed 105 | . 95 10 . . Melee . | . . . . . Projectile . | . . . . . AOE 105 | . 95 10 . . Terrain Rammed . | . . . . . Walls Destroyed . | . . . . . Machines Disabled . | . . . . . Actions | -11 -10 -10 -10 -9 --------- Run | Yrd Mat Min Exi Min Total 2211 | 52 920 492 616 131 Wait 11 | . 11 . . . Move 2054 | 39 822 470 597 126 Hop . | . . . . . Pick Up 38 | 7 25 3 3 . Fast Attach 1 | 1 . . . . Attach 20 | 5 5 4 5 1 Detach 6 | . 1 . 5 . Swap 8 | . 7 . . 1 Drop 5 | . 3 . 2 . Fire 64 | . 46 15 . 3 Melee . | . . . . . Ram . | . . . . . Kick . | . . . . . Crush . | . . . . . Escape Stasis . | . . . . . Rewire 4 | . . . 4 . Trap . | . . . . . Miscellaneous . | . . . . . Route ------- -11/Scrapyard -10/Materials (discovered 5 exits: [*Mat x3] / [*Min x2]) -10/Mines (discovered 3 exits: [*Mat] / *Exi / [*Sub]) -10/Exiles (discovered 2 exits: [*Min x2]) -9/Mines History --------- Turn | Location | Event 10 | -11/Scrapyard | Discovered new exit (range 16) 61 | -11/Scrapyard | Entered Materials 253 | -10/Materials | Discovered new exit (range 12) 311 | -10/Materials | Build established: Mutant 395 | -10/Materials | Discovered new exit (range 13) 784 | -10/Materials | Discovered new exit (range 8) 1235 | -10/Materials | Discovered new exit (range 15) 1437 | -10/Materials | Lost 3 parts (1p1n1w) 1554 | -10/Materials | Discovered new exit (range 15) 1930 | -10/Materials | Entered Mines 1933 | -10/Mines | Met a Derelict bent on vengeance 1983 | -10/Mines | Discovered new exit (range 10) 2126 | -10/Mines | Learned location of Storage (-7) 2195 | -10/Mines | Assembled infested the area 2200 | -10/Mines | Assisted by a Guerilla fighting off Assembled 2325 | -10/Mines | Core integrity fell below 50% 2801 | -10/Mines | Discovered new exit (range 13) 3147 | -10/Mines | Deemed a non-threat by the Exiles lab entrance 3147 | -10/Mines | Discovered new exit (range 5) 3156 | -10/Mines | Entered Exiles 3204 | -10/Exiles | Discovered new exit (range 15) 3267 | -10/Exiles | Met 8R-AWN 3305 | -10/Exiles | Met EX-HEX 3424 | -10/Exiles | Met EX-DEC 3509 | -10/Exiles | Visited The Gauntlet 3852 | -10/Exiles | Met EX-BIN 3909 | -10/Exiles | Learned location of Zion (-7) 3981 | -10/Exiles | Discovered new exit (range 10) 4212 | -10/Exiles | Aligned with FarCom system 4214 | -10/Exiles | Given EX-Vault access code 4324 | -10/Exiles | Opened EX-Vault 4332 | -10/Exiles | Found Prototype Device 4339 | -10/Exiles | Found Prototype Storage 4341 | -10/Exiles | Identified Superbattery 4359 | -10/Exiles | Found Prototype Slashing Weapon 4361 | -10/Exiles | Identified Longsword +1 4418 | -10/Exiles | Warned to stay clear of 0b10 Research branches 4605 | -10/Exiles | Left Exiles lab with Superbattery 4605 | -10/Exiles | Entered Mines 4915 | -9/Mines | Core integrity fell below 20% 4916 | -9/Mines | Destroyed by L-31 Rogue with Katana Last Messages --------------- 04341_ Identified Superbattery. 04359_ Acquired Prototype Slashing Weapon. 04361_ Identified Longsword +1. 04362_ Dropped Longsword +1. EX-BIN: Oh yeah, I'd suggest you stay away from the 0b10 Research branches, since the FarCom signals could be picked up there, but you're welcome to try if you really want to. And if we have to leave here due to unforeseen circumstances, don't worry the FarCom system will continue to maintain contact via our distributed network. EX-BIN: And don't even think about spreading that code around. We're gonna change it right after you leave. Most certainly not to something like 1234 which I did last time as a little joke and some thief managed to sneak in here and steal a few of HEX's prototypes. LOCATION=UNKNOWN GOAL=ESCAPE 04605_ Receiving FarCom transmissions... 04832_ K-01 Serf collects debris. 04887_ Ion Engine destroyed. 04891_ K-01 Serf collects debris. Map ----- +----------------------------------------------------+ | ?????????????????????????????????????????????????? | | ?????????????????????????????????????????????????? | | ?????????????????????????????????????????????????? | | ?????????????????????????????????????????????????? | | ?????????????????????????????????????????????????? | | ?????????????????????????????????????????????????? | | ?????????????????????????????????????????????????? | | ?????????????????????????????????????????????????? | | ?????????????????????????????????????????????????? | | ?????????????????????????????????????????????????? | | ?????????????????????????????????????????????????? | | ?????????????????????????????????????????????????? | | ????????????????????g????????????????????????????? | | ??????????????????g?g????????????????????????????? | | ?????????????????????????????????????????????????? | | ????????????????????????????????????????????????#? | | ?????????????????????????????####?????????????? #? | | ????????????????????????????## ##??????????? ## | | ???????????????????????????## ##??#####?? | | ???????????????????????????# #?## ## | | ???????????????????????????# ### # | | ????????????????????????###?# | | ???????????????????????? #?# | | ????????????????????????# #?# g ### #?? | | ????????????????????????# #?# ##??????? | | ????????????????????????#@#?# g g ####???????? | | ????????????????????????#l#?# ########??????????? | | ??????????#####?????????# ###g #?????????????????? | | ?????????## #?######??# g #####?????????????? | | ????????## #?## ######## ##????????????? | | ????????# #### ##??## #????????????? | | ????????# #### #????????????? | | ????????# ##????????????? | | ????????# #### ####?????????????? | | ????????## #??# ## ##????????????????? | | ????????## #### ### #########?????????????????? | | ???????## ### ##????????????????????????? | | ???????# ##### #????????????????????????? | | ??????## #???# #????????????????????????? | | ????### ##??###### #????????????????????????? | | ???## """ ##?????## ##???????????????????????? | | #??# """ ###???# #???????????????????????? | | #### """ ##??# #???????????????????????? | | ## """ #??## #???????????????????????? | | #???# #??????????????????????? | | ##???# #??????????????????????? | | ### ##????## ##??????????????????????? | | # ####?# ##???????###???????????????????????? | | ######?????####??????????????????????????????????? | | ?????????????????????????????????????????????????? | +----------------------------------------------------+ Best States ------------- Heat Dissipation 25 Energy Generation 10 Energy Capacity 250 Matter Stores 300 Matter Capacity 300 Sight Range 16 Robot Scan Range 14 Terrain Scan Density 10 Core Shielding 20 Power Shielding 33 Evasion (%) 50 Recoil Reduction 2 Item Schematics ----------------- None Robot Schematics ------------------ None Fabricated ------------ Nothing Alien Tech Used ----------------- None Achievements -------------- None Challenges ------------ None Game ------ Seed RecyclingPlasmaWand Manual? 0 Play Time 00:25:12 Cumulative 20.0 hours Start 2024.10.20 @ 09:26:33 End 2024.10.20 @ 09:51:07 Sessions 1 Manual Loads 0 Difficulty Rogue Special Mode None Game No. 15 Rogue 8 Adventurer 0 Explorer 7 Win Type - Total 1 Types 1/0/0/0/0/0/0/0/0 Lore% 11 Gallery% 17 Achievement% 22 Wizard Run 0 Options --------- Layout 0 ASCII 0 Keyboard 0 Movement Mouse Keybinds 0 Fullscreen 1 Font 24/Terminus Map View 76x50 Zoom Use 0% Tactical HUD 1 Map Filters NONE Filters NONE Steam 1 RUN: 9a5a4216-9b6b-4f32-ad36-9068dc8f8e3b